[Event "AUT-ch 2018"]
[Site "Vienna"]
[Date "2018.07.23"]
[Round "3"]
[White "Morgunov, Marc"]
[Black "Ager, Josef"]
[Result "0-1"]
[ECO "A04"]
[WhiteElo "2362"]
[BlackElo "2154"]
[Annotator "NA"]
[PlyCount "84"]
[EventDate "2018.07.22"]
[EventType "swiss"]
[EventCountry "AUT"]
[SourceTitle "playchess.com"]
[Source "ChessBase"]
[SourceQuality "1"]
[TimeControl "40/5400+30:1800+30"]

1. Nf3 {[%emt 0:00:00]} g6 {[%emt 0:00:18]} 2. g3 {[%emt 0:00:00]} Bg7 {[%emt 0:00:07]} 3. Bg2 {[%emt 0:00:00]} d6 {[%emt 0:00:14]} 4. O-O {[%emt 0:00:00]} Nc6 {[%emt 0:00:14] A04: Unusual lines after 1 Nf3 and King's Indian Attack} (4... e5 5. c4 f5 6. Nc3 Nf6 7. d3 O-O 8. b4 Nh5 9. Bg5 Qe8 10. Nd5 Rf7 11. b5 f4 12. h3 fxg3 13. Be3 gxf2+ 14. Rxf2 c6 15. bxc6 bxc6 16. Nc3 {1-0 (35) Carlsen,M (2832)-Guseinov,G (2645) chess.com INT 2017}) 5. d3 {[%emt 0:00:47]} f5 {[%emt 0:01:01]} 6. e4 {[%emt 0:02:24]} Nf6 {[%emt 0:00:11]} 7. Re1 {[%emt 0:00:36]} O-O {[%emt 0:01:19]} 8. c3 {[%emt 0:01:21]} fxe4 $146 {[%emt 0:02:03]} ({Predecessor:} 8... e5 9. Ng5 Kh8 10. f4 h6 11. Nf3 exf4 12. Bxf4 fxe4 13. dxe4 {0-1 (47) Balogun,O (2222)-Hawkins,J (2583) chess.com INT 2017}) 9. dxe4 {[%emt 0:00:12]} e5 {[%emt 0:00:21]} 10. Nbd2 {[%emt 0:03:40]} Kh8 {[%emt 0:00:22]} 11. Qc2 {[%emt 0:04:26]} Be6 {[%emt 0:04:56]} 12. h3 {[%emt 0:04:08]} h6 {[%emt 0:03:05]} 13. Nh4 {[%emt 0:04:41]} Ne7 {[%emt 0:00:27]} 14. g4 {[%emt 0:08:51]} Nfg8 {[%emt 0:07:32]} 15. Ndf3 {[%emt 0:04:38]} Qe8 {[%emt 0:08:02]} 16. Be3 {[%emt 0:05:10]} Nc6 {[%emt 0:00:32]} 17. g5 {[%emt 0:02:36]} h5 {[%emt 0:00:31]} 18. Nd2 {[%emt 0:00:34]} Nge7 {[%emt 0:00:19]} 19. Nf1 {[%emt 0:02:08]} Qf7 {[%emt 0:02:40]} 20. b3 {[%emt 0:00:45]} Qe8 {[%emt 0:06:17]} 21. Rad1 {[%emt 0:03:19]} Bg8 {[%emt 0:02:32]} 22. Ng3 {[%emt 0:03:43]} Bh7 {[%emt 0:00:33]} 23. Ne2 {[%emt 0:01:50]} Nd8 {[%emt 0:00:46]} 24. f4 {[%emt 0:07:08]} Ne6 {[%emt 0:00:19]} 25. fxe5 {[%emt 0:00:06]} Bxe5 {[%emt 0:01:29]} 26. Nf3 {[%emt 0:00:21]} Bg7 {[%emt 0:00:40]} 27. Ned4 {[%emt 0:04:08]} Nc6 {[%emt 0:01:40]} 28. Nxc6 {[%emt 0:03:47]} bxc6 {[%emt 0:00:48]} 29. Bd4 {[%emt 0:06:09]} Qe7 {[%emt 0:04:38]} 30. Bxg7+ {[%emt 0:02:36]} Kxg7 {[%emt 0:00:26]} 31. e5 {[%emt 0:02:36]} d5 {[%emt 0:00:43]} 32. c4 {[%emt 0:06:08]} Bg8 {[%emt 0:01:39]} 33. cxd5 {[%emt 0:01:13]} cxd5 {[%emt 0:00:10]} 34. Rxd5 {[%emt 0:00:34]} Nxg5 {[%emt 0:01:46] [#]} 35. Nh4 $2 {[%emt 0:01:41]} ({White must play} 35. e6 $1 $16 Nxf3+ 36. Bxf3) 35... Nxh3+ {[%emt 0:01:12]} 36. Bxh3 {[%emt 0:00:25]} Qxh4 {[%emt 0:00:09]} 37. Rd7+ {[%emt 0:00:04]} Kh8 {[%emt 0:04:07]} 38. Qc3 {[%emt 0:00:18]} Qf2+ {[%emt 0:00:15]} 39. Kh1 {[%emt 0:00:04]} Rf3 {[%emt 0:00:29]} 40. Qxf3 {[%emt 0:08:02]} Qxf3+ $19 {[%emt 0:30:21]} 41. Bg2 {[%emt 0:30:04]} Qf2 {[%emt 0:01:46]} 42. Rf1 {[%emt 0:00:03]} Qh4+ {[%emt 0:00:10]} 0-1

[Event "AUT-ch 2018"]
[Site "Vienna"]
[Date "2018.07.23"]
[Round "3"]
[White "Sandhoefner, Florian"]
[Black "Hapala, Elisabeth"]
[Result "1/2-1/2"]
[ECO "B42"]
[WhiteElo "2327"]
[BlackElo "2131"]
[Annotator "NA"]
[PlyCount "84"]
[EventDate "2018.07.22"]
[EventType "swiss"]
[EventCountry "AUT"]
[SourceTitle "playchess.com"]
[Source "ChessBase"]
[SourceQuality "1"]
[TimeControl "40/5400+30:1800+30"]

1. e4 {[%emt 0:00:00]} c5 {[%emt 0:00:04]} 2. Nf3 {[%emt 0:00:00]} e6 {[%emt 0:00:06]} 3. d4 {[%emt 0:00:00]} cxd4 {[%emt 0:00:03]} 4. Nxd4 {[%emt 0:00:00]} a6 {[%emt 0:00:13]} 5. Bd3 {[%emt 0:00:00]} Bc5 {[%emt 0:00:17]} 6. Nb3 {[%emt 0:00:00]} Ba7 {[%emt 0:00:05]} 7. Nc3 {[%emt 0:00:24]} Nc6 {[%emt 0:00:34]} 8. Qe2 {[%emt 0:00:08]} d6 {[%emt 0:00:24]} 9. Be3 {[%emt 0:00:14]} Nge7 {[%emt 0:00:55]} 10. f4 {[%emt 0:02:23] B42: Sicilian: Kan Variation: 5 Bd3} b5 {[%emt 0:10:22]} 11. Bxa7 {[%emt 0:01:29]} (11. a4 b4 12. Nd1 Ng6 13. g3 O-O 14. Bxa7 Rxa7 15. Ne3 Na5 16. Nxa5 Qxa5 17. b3 Qc5 {1-0 (46) Svidler,P (2765)-Romanov,E (2626) St Petersburg 2017}) 11... Rxa7 {[%emt 0:01:09]} 12. Qf2 {[%emt 0:00:30]} Rd7 {[%emt 0:19:24]} 13. O-O-O $146 {[%emt 0:02:53]} ({Predecessor:} 13. O-O O-O 14. f5 Rb7 15. Kh1 Ne5 16. Qg3 f6 17. a4 b4 {0-1 (32) Postnikov,D (2116)-Girya,O (2335) Dagomys 2009}) 13... Ng6 {[%emt 0:13:58]} 14. Rd2 {[%emt 0:06:19]} O-O {[%emt 0:02:34]} 15. h4 {[%emt 0:08:09]} e5 {[%emt 0:06:03]} 16. f5 {[%emt 0:05:59]} Nf4 {[%emt 0:00:42]} 17. Bf1 {[%emt 0:00:59]} Nh5 {[%emt 0:20:08]} 18. Be2 {[%emt 0:05:42]} Nf6 {[%emt 0:00:29]} 19. Bf3 {[%emt 0:01:10]} Na5 {[%emt 0:05:21]} 20. g4 {[%emt 0:07:41]} Nc4 {[%emt 0:00:28]} 21. Rd3 {[%emt 0:03:40]} Qb6 {[%emt 0:01:44]} 22. Qg3 {[%emt 0:07:50]} b4 {[%emt 0:01:20]} 23. g5 {[%emt 0:01:31]} Ne8 {[%emt 0:00:16]} 24. Nd5 {[%emt 0:00:20]} Qd8 {[%emt 0:05:47]} 25. f6 {[%emt 0:01:29]} g6 $2 {[%emt 0:01:55]} (25... Bb7 $16) 26. Bg4 {[%emt 0:01:16]} h5 {[%emt 0:06:59]} 27. Bxd7 {[%emt 0:02:41]} Bxd7 {[%emt 0:00:16]} 28. Qf2 {[%emt 0:02:48]} Nc7 {[%emt 0:01:13]} 29. Ne7+ {[%emt 0:01:43]} Kh7 {[%emt 0:00:02]} 30. Nd2 {[%emt 0:02:23]} Bb5 {[%emt 0:00:40]} 31. Rd1 {[%emt 0:03:42]} Ne6 $2 {[%emt 0:01:17]} (31... Na5 32. Re3 Ne6) 32. Nxc4 {[%emt 0:01:21]} Bxc4 {[%emt 0:00:01]} 33. Rxd6 {[%emt 0:00:42]} Qa5 {[%emt 0:00:06] [#]} 34. b3 $2 {[%emt 0:01:10]} (34. Nxg6 $1 $18 fxg6 35. Qa7+ Nc7 36. Rd7+ Bf7 37. R1d5) 34... Qxa2 {[%emt 0:00:59]} 35. bxc4 {[%emt 0:01:04]} Qa1+ {[%emt 0:00:24]} 36. Kd2 {[%emt 0:00:47]} Qc3+ {[%emt 0:00:02]} 37. Ke2 {[%emt 0:01:58]} Nf4+ {[%emt 0:00:34]} 38. Kf1 {[%emt 0:01:03]} Qh3+ {[%emt 0:00:40]} 39. Ke1 {[%emt 0:02:30]} Ng2+ {[%emt 0:00:14]} 40. Ke2 {[%emt 0:01:58]} Nf4+ {[%emt 0:30:09]} 41. Ke1 {[%emt 0:30:28]} Ng2+ {[%emt 0:02:21]} 42. Ke2 {[%emt 0:00:50]} Nf4+ $11 1/2-1/2

[Event "AUT-ch 2018"]
[Site "Vienna"]
[Date "2018.07.23"]
[Round "3"]
[White "Kummer, Helmut"]
[Black "Froewis, Annika"]
[Result "1-0"]
[ECO "D49"]
[WhiteElo "2290"]
[BlackElo "2128"]
[Annotator "ChessBase"]
[PlyCount "53"]
[EventDate "2018.07.22"]
[EventType "swiss"]
[EventCountry "AUT"]
[SourceTitle "playchess.com"]
[Source "ChessBase"]
[SourceQuality "1"]
[TimeControl "40/5400+30:1800+30"]

1. d4 {[%emt 0:00:00]} d5 {[%emt 0:00:00]} 2. c4 {[%emt 0:00:00]} e6 3. Nc3 {[%emt 0:00:00]} c6 {[%emt 0:00:17]} 4. Nf3 {[%emt 0:00:52]} Nf6 {[%emt 0:00:07]} 5. e3 {[%emt 0:00:15]} Nbd7 {[%emt 0:00:19]} 6. Bd3 {[%emt 0:05:58]} dxc4 {[%emt 0:01:49]} 7. Bxc4 {[%emt 0:00:07]} b5 {[%emt 0:00:12]} 8. Bd3 {[%emt 0:00:06]} a6 {[%emt 0:00:26]} 9. e4 {[%emt 0:03:56]} c5 {[%emt 0:00:45]} 10. e5 {[%emt 0:01:28]} cxd4 {[%emt 0:01:30]} 11. Nxb5 {[%emt 0:02:43]} axb5 {[%emt 0:00:35]} 12. exf6 {[%emt 0:00:06]} gxf6 {[%emt 0:00:41]} 13. O-O {[%emt 0:00:24]} Qb6 {[%emt 0:11:22]} 14. Qe2 {[%emt 0:01:14]} Bb7 {[%emt 0:11:07]} 15. Bxb5 {[%emt 0:03:15]} Rg8 {[%emt 0:02:40]} 16. Bf4 {[%emt 0:03:28]} Bc5 {[%emt 0:14:01]} 17. Rfd1 {[%emt 0:13:17]} Ke7 {[%emt 0:06:29]} 18. Bg3 {[%emt 0:19:25]} h5 {[%emt 0:23:09]} 19. a4 {[%emt 0:06:51]} Bd5 {[%emt 0:10:17]} 20. b4 {[%emt 0:01:39]} Bxf3 {[%emt 0:05:13]} 21. Qxf3 {[%emt 0:00:20]} Bd6 {[%emt 0:02:43]} 22. Bxd7 {[%emt 0:05:39]} Bxg3 {[%emt 0:01:47]} 23. hxg3 {[%emt 0:00:56]} Kxd7 {[%emt 0:00:24]} 24. Qxf6 {[%emt 0:00:10]} Ke8 {[%emt 0:01:30]} 25. Rxd4 {[%emt 0:02:33]} Qb7 {[%emt 0:02:33]} 26. Rad1 {[%emt 0:00:49]} Qe7 {[%emt 0:00:30]} 27. Qe5 {[%emt 0:00:57]} 1-0

[Event "AUT-ch 2018"]
[Site "Vienna"]
[Date "2018.07.23"]
[Round "3"]
[White "Sadilek, Peter"]
[Black "Toelly, Michael"]
[Result "1-0"]
[ECO "A46"]
[WhiteElo "2268"]
[BlackElo "2127"]
[Annotator "ChessBase"]
[PlyCount "93"]
[EventDate "2018.07.22"]
[EventType "swiss"]
[EventCountry "AUT"]
[SourceTitle "playchess.com"]
[Source "ChessBase"]
[SourceQuality "1"]
[TimeControl "40/5400+30:1800+30"]

1. d4 {[%emt 0:00:00]} Nf6 {[%emt 0:00:14]} 2. Nf3 {[%emt 0:00:25]} e6 {[%emt 0:00:28]} 3. g3 {[%emt 0:01:30]} d5 {[%emt 0:00:15]} 4. Bg2 {[%emt 0:00:11]} Nbd7 {[%emt 0:01:11]} 5. O-O {[%emt 0:00:23]} Be7 {[%emt 0:01:16]} 6. c4 {[%emt 0:01:04]} c6 {[%emt 0:01:13]} 7. Nc3 {[%emt 0:01:20]} O-O {[%emt 0:00:45]} 8. Bf4 {[%emt 0:01:47]} Nh5 {[%emt 0:08:02]} 9. Bc1 {[%emt 0:03:51]} f5 {[%emt 0:00:40]} 10. b3 {[%emt 0:02:32]} Nhf6 {[%emt 0:08:41]} 11. e3 {[%emt 0:00:09]} Ne4 {[%emt 0:01:03]} 12. Ne2 {[%emt 0:00:09]} Ndf6 {[%emt 0:02:30]} 13. Ne5 {[%emt 0:06:33]} Bd7 {[%emt 0:03:56]} 14. Nf4 {[%emt 0:14:05]} Qc8 {[%emt 0:07:46]} 15. Bb2 {[%emt 0:12:08]} Be8 {[%emt 0:03:43]} 16. Rc1 {[%emt 0:04:45]} g5 {[%emt 0:02:38]} 17. Nfd3 {[%emt 0:05:09]} Bh5 {[%emt 0:01:12]} 18. f3 {[%emt 0:01:26]} Nd6 {[%emt 0:00:47]} 19. Ba3 {[%emt 0:13:25]} Qe8 {[%emt 0:03:17]} 20. Bc5 {[%emt 0:05:55]} Nf7 {[%emt 0:01:43]} 21. Bxe7 {[%emt 0:06:05]} Qxe7 {[%emt 0:00:28]} 22. Qd2 {[%emt 0:03:28]} Rac8 {[%emt 0:03:16]} 23. Nxf7 {[%emt 0:01:25]} Bxf7 {[%emt 0:01:44]} 24. e4 {[%emt 0:06:46]} h6 {[%emt 0:05:04]} 25. e5 {[%emt 0:03:52]} Nd7 {[%emt 0:00:51]} 26. cxd5 {[%emt 0:00:46]} exd5 {[%emt 0:00:45]} 27. f4 {[%emt 0:02:33]} g4 {[%emt 0:00:44]} 28. Qa5 {[%emt 0:00:54]} a6 {[%emt 0:00:20]} 29. Rfe1 {[%emt 0:00:46]} Be6 {[%emt 0:00:32]} 30. Qc3 {[%emt 0:00:56]} h5 {[%emt 0:02:38]} 31. a4 {[%emt 0:00:22]} Kg7 {[%emt 0:02:08]} 32. b4 {[%emt 0:00:22]} Qd8 {[%emt 0:03:38]} 33. Qb3 {[%emt 0:00:55]} Qb6 {[%emt 0:01:12]} 34. Qc3 {[%emt 0:00:04]} Kf7 {[%emt 0:00:31]} 35. Nc5 {[%emt 0:00:51]} Nxc5 {[%emt 0:00:49]} 36. bxc5 {[%emt 0:00:17]} Qc7 {[%emt 0:00:17]} 37. Rb1 {[%emt 0:00:24]} Ra8 {[%emt 0:02:00]} 38. Rb6 {[%emt 0:00:11]} Kg6 {[%emt 0:00:58]} 39. Qb3 {[%emt 0:00:32]} Rf7 {[%emt 0:03:08]} 40. Bxd5 {[%emt 0:00:55]} Bxd5 {[%emt 0:33:05]} 41. Qxd5 {[%emt 0:30:05]} Rd8 {[%emt 0:00:05]} 42. Qc4 {[%emt 0:00:00]} Kg7 {[%emt 0:00:00]} 43. e6 {[%emt 0:00:00]} Re7 {[%emt 0:00:00]} 44. Re5 {[%emt 0:00:00]} Kg6 {[%emt 0:00:00]} 45. Qd3 {[%emt 0:00:00]} Rf8 {[%emt 0:00:00]} 46. d5 {[%emt 0:00:00]} cxd5 {[%emt 0:00:00]} 47. Qxd5 {[%emt 0:00:00]} 1-0

[Event "AUT-ch 2018"]
[Site "Vienna"]
[Date "2018.07.23"]
[Round "3"]
[White "Gerhold, Michael"]
[Black "Hupfer, Robert"]
[Result "1-0"]
[ECO "B12"]
[WhiteElo "2254"]
[BlackElo "2122"]
[Annotator "ChessBase"]
[PlyCount "61"]
[EventDate "2018.07.22"]
[EventType "swiss"]
[EventCountry "AUT"]
[SourceTitle "playchess.com"]
[Source "ChessBase"]
[SourceQuality "1"]
[TimeControl "40/5400+30:1800+30"]

1. e4 {[%emt 0:00:00]} c6 {[%emt 0:00:05]} 2. d4 {[%emt 0:00:00]} d5 {[%emt 0:00:02]} 3. e5 {[%emt 0:00:00]} Bf5 {[%emt 0:00:10]} 4. Nf3 {[%emt 0:00:00]} e6 {[%emt 0:00:13]} 5. Be2 {[%emt 0:00:00]} Nd7 {[%emt 0:00:12]} 6. O-O {[%emt 0:01:28]} Ne7 {[%emt 0:00:27]} 7. Nbd2 {[%emt 0:01:50]} h6 {[%emt 0:02:03]} 8. Nb3 {[%emt 0:00:44]} Qc7 {[%emt 0:03:17]} 9. Bd2 {[%emt 0:02:27]} g5 {[%emt 0:09:37]} 10. Bb4 {[%emt 0:02:02]} Ng6 {[%emt 0:04:02]} 11. Bxf8 {[%emt 0:00:11]} Ndxf8 {[%emt 0:00:35]} 12. g3 {[%emt 0:04:09]} Nd7 {[%emt 0:02:53]} 13. c4 {[%emt 0:02:36]} O-O-O {[%emt 0:14:03]} 14. cxd5 {[%emt 0:04:20]} exd5 {[%emt 0:00:08]} 15. Rc1 {[%emt 0:00:55]} Ngf8 {[%emt 0:07:52]} 16. Qd2 {[%emt 0:02:36]} f6 {[%emt 0:03:53]} 17. exf6 {[%emt 0:04:58]} Nxf6 {[%emt 0:00:12]} 18. Ne5 {[%emt 0:00:48]} Ng6 {[%emt 0:02:47]} 19. Nxg6 {[%emt 0:23:41]} Bxg6 {[%emt 0:00:03]} 20. Na5 {[%emt 0:01:30]} Qb6 {[%emt 0:10:50]} 21. b4 {[%emt 0:04:10]} Ne4 {[%emt 0:05:33]} 22. Qb2 {[%emt 0:00:05]} Kb8 {[%emt 0:02:18]} 23. a3 {[%emt 0:03:32]} Rhf8 {[%emt 0:03:31]} 24. Nb3 {[%emt 0:01:10]} Bf5 {[%emt 0:03:50]} 25. f3 {[%emt 0:00:27]} Nd6 {[%emt 0:03:36]} 26. Nc5 {[%emt 0:00:08]} Rfe8 {[%emt 0:05:37]} 27. a4 {[%emt 0:05:05]} Re3 {[%emt 0:07:58]} 28. a5 {[%emt 0:01:11]} Qc7 {[%emt 0:01:29]} 29. b5 {[%emt 0:03:34]} Rde8 {[%emt 0:03:22]} 30. bxc6 {[%emt 0:01:18]} Qxc6 {[%emt 0:01:00]} 31. Na6+ {[%emt 0:00:40]} 1-0

[Event "AUT-ch 2018"]
[Site "Vienna"]
[Date "2018.07.23"]
[Round "3"]
[White "Sadilek, Maximilian"]
[Black "Charaus, Florian"]
[Result "1-0"]
[ECO "A48"]
[WhiteElo "2224"]
[BlackElo "2115"]
[Annotator "NA"]
[PlyCount "47"]
[EventDate "2018.07.22"]
[EventType "swiss"]
[EventCountry "AUT"]
[SourceTitle "playchess.com"]
[Source "ChessBase"]
[SourceQuality "1"]
[TimeControl "40/5400+30:1800+30"]

1. d4 {[%emt 0:00:00]} Nf6 {[%emt 0:01:09]} 2. Nf3 {[%emt 0:00:53]} g6 {[%emt 0:02:45]} 3. Nc3 {[%emt 0:00:27]} d5 {[%emt 0:00:55]} 4. Bf4 {[%emt 0:00:16]} Bg7 {[%emt 0:05:22]} 5. e3 {[%emt 0:00:23]} O-O {[%emt 0:00:15]} 6. Be2 {[%emt 0:00:10]} c6 {[%emt 0:02:32]} 7. h4 {[%emt 0:08:23]} h5 {[%emt 0:04:37]} 8. Ne5 {[%emt 0:05:24]} b5 {[%emt 0:03:56]} 9. g4 {[%emt 0:08:04]} hxg4 {[%emt 0:06:14]} 10. Nxg4 {[%emt 0:01:29]} Qa5 {[%emt 0:01:31]} 11. Nxf6+ {[%emt 0:01:37]} exf6 {[%emt 0:00:31]} 12. h5 {[%emt 0:09:33]} b4 {[%emt 0:03:42]} 13. Nb1 {[%emt 0:02:19]} f5 {[%emt 0:01:38]} 14. Nd2 {[%emt 0:03:00]} Ba6 {[%emt 0:01:00]} 15. Nb3 {[%emt 0:01:42]} Qb6 {[%emt 0:04:00]} 16. Nc5 {[%emt 0:00:51]} Bxe2 {[%emt 0:00:35]} 17. Qxe2 {[%emt 0:00:41]} Re8 {[%emt 0:00:07]} 18. Qd3 {[%emt 0:10:26]} a5 {[%emt 0:00:28]} 19. O-O-O {[%emt 0:01:07]} Na6 {[%emt 0:00:37]} 20. hxg6 {[%emt 0:05:25]} Nxc5 {[%emt 0:01:13]} 21. gxf7+ {[%emt 0:00:15]} Kxf7 {[%emt 0:00:04]} 22. Qxf5+ {[%emt 0:00:16]} Kg8 {[%emt 0:00:06]} 23. dxc5 {[%emt 0:02:05]} Qxc5 {[%emt 0:00:06]} 24. Rdg1 {[%emt 0:01:12]} 1-0

[Event "AUT-ch 2018"]
[Site "Vienna"]
[Date "2018.07.23"]
[Round "3"]
[White "Steiner, Bruno"]
[Black "Iro, Christian"]
[Result "1-0"]
[ECO "D05"]
[WhiteElo "2194"]
[BlackElo "2055"]
[Annotator "NA"]
[PlyCount "71"]
[EventDate "2018.07.22"]
[EventType "swiss"]
[EventCountry "AUT"]
[SourceTitle "playchess.com"]
[Source "ChessBase"]
[SourceQuality "1"]
[TimeControl "40/5400+30:1800+30"]

1. Nf3 {[%emt 0:00:14]} Nf6 {[%emt 0:00:07]} 2. e3 {[%emt 0:00:23]} e6 {[%emt 0:00:07]} 3. d4 {[%emt 0:01:14]} d5 {[%emt 0:00:06]} 4. Bd3 {[%emt 0:01:03]} Be7 {[%emt 0:00:09]} 5. b3 {[%emt 0:00:15]} O-O {[%emt 0:00:15]} 6. Bb2 {[%emt 0:00:04]} c5 {[%emt 0:00:31]} 7. O-O {[%emt 0:02:15]} Nc6 {[%emt 0:00:45]} 8. Nbd2 b6 {[%emt 0:02:44]} 9. a3 {[%emt 0:09:17]} Bb7 {[%emt 0:03:31]} 10. Qe2 {[%emt 0:03:58]} Rc8 {[%emt 0:06:47] D05: Damenbauernspiele (Colle-Aufbau)} (10... Qc7 11. Rac1 Rac8 12. c4 dxc4 13. bxc4 cxd4 14. exd4 Rfe8 15. Rfe1 Qb8 16. Ne4 Na5 17. Neg5 Qf4 18. Nxe6 fxe6 19. Qxe6+ {0-1 (33) Mamedyarov,S (2808)-Nakamura,H (2769) Paris 2018}) 11. Rad1 {[%emt 0:15:35]} Qc7 {[%emt 0:06:43]} 12. dxc5 {[%emt 0:03:57]} bxc5 {[%emt 0:00:51]} 13. e4 {[%emt 0:02:20]} d4 {[%emt 0:04:55]} 14. e5 {[%emt 0:05:32]} Nd5 {[%emt 0:01:18]} 15. Qe4 {[%emt 0:06:03]} g6 {[%emt 0:00:25]} 16. Nc4 $146 {[%emt 0:05:17]} ({Vorgänger:} 16. Rde1 a5 17. Qg4 a4 18. h4 axb3 19. cxb3 {0-1 (72) Hoang,T (2283)-Cao,S (2430) Ho Chi Minh City 2016}) 16... Ba8 {[%emt 0:10:57]} 17. Rde1 {[%emt 0:02:32]} Na5 {[%emt 0:01:37]} 18. Nxa5 {[%emt 0:06:10]} Qxa5 {[%emt 0:01:14]} 19. Qg4 {[%emt 0:00:28]} Bc6 {[%emt 0:02:55]} 20. Bc1 {[%emt 0:02:26]} Bb5 {[%emt 0:04:27]} 21. Bxb5 {[%emt 0:09:14]} Qxb5 {[%emt 0:00:01]} 22. Ng5 {[%emt 0:01:50]} Nc3 {[%emt 0:16:30]} 23. Qh3 {[%emt 0:01:45]} h5 {[%emt 0:01:59]} 24. Nxe6 {[%emt 0:03:03]} Rfe8 {[%emt 0:00:36]} 25. Nf4 {[%emt 0:02:45]} Bg5 {[%emt 0:00:58]} 26. Nd3 {[%emt 0:01:44]} Bxc1 {[%emt 0:01:52]} 27. Nxc1 {[%emt 0:00:00]} Nb1 {[%emt 0:03:42]} 28. f4 {[%emt 0:03:05]} Nxa3 {[%emt 0:03:50]} 29. f5 {[%emt 0:00:19]} Nxc2 30. fxg6 {[%emt 0:00:15]} fxg6 {[%emt 0:10:12]} 31. Rf6 {[%emt 0:00:19]} Kh7 {[%emt 0:06:28]} 32. Rf7+ {[%emt 0:00:05]} Kh8 {[%emt 0:02:05]} 33. Ref1 {[%emt 0:04:06]} Ne3 {[%emt 0:01:37]} 34. R1f6 {[%emt 0:06:37]} Qb4 {[%emt 0:01:08]} 35. Qg3 {[%emt 0:00:47]} Qd2 {[%emt 0:00:12]} (35... Ng4 $11 36. Rxg6 Rg8) 36. Rh7+ {[%emt 0:00:19] Qb4 Rhf7 Ng4} 1-0

[Event "AUT-ch 2018"]
[Site "Vienna"]
[Date "2018.07.23"]
[Round "3"]
[White "Bauer, Thomas"]
[Black "Pernerstorfer, Johannes"]
[Result "1-0"]
[ECO "B51"]
[WhiteElo "2181"]
[BlackElo "2066"]
[Annotator "NA"]
[PlyCount "87"]
[EventDate "2018.07.22"]
[EventType "swiss"]
[EventCountry "AUT"]
[SourceTitle "playchess.com"]
[Source "ChessBase"]
[SourceQuality "1"]
[TimeControl "40/5400+30:1800+30"]

1. e4 {[%emt 0:00:00]} c5 {[%emt 0:00:32]} 2. Nf3 {[%emt 0:00:00]} d6 {[%emt 0:01:07]} 3. Bb5+ {[%emt 0:00:00]} Nd7 {[%emt 0:00:20]} 4. O-O {[%emt 0:00:15]} e6 {[%emt 0:01:06] B51: Sicilian: Moscow Variation (3 Bb5+) without 3...Bd7} (4... a6 5. Bd3 Ngf6 6. c3 b5 7. a4 c4 8. Be2 Bb7 9. axb5 axb5 10. Rxa8 Bxa8 11. Na3 Bxe4 12. Nxb5 d5 {1-0 (28) Svidler,P (2753)-Nepomniachtchi,I (2757) Jerusalem 2018}) 5. Re1 {[%emt 0:00:18]} a6 {[%emt 0:01:12]} 6. Bf1 {[%emt 0:01:18]} Be7 $146 {[%emt 0:00:36]} ({Predecessor:} 6... Ngf6 7. c3 Be7 8. d4 O-O 9. Bg5 h6 10. Bh4 b6 11. Nbd2 Bb7 12. e5 Ne8 13. Bg3 cxd4 14. cxd4 dxe5 15. dxe5 Nc7 16. a3 {0-1 (34) Vidarsson,J (2340)-Stefansson,H (2540) Gardabaer 1996}) 7. c3 {[%emt 0:00:24]} b5 {[%emt 0:01:38]} 8. a4 {[%emt 0:01:48]} b4 {[%emt 0:00:38]} 9. d4 {[%emt 0:00:58]} Bb7 {[%emt 0:01:12]} 10. Nbd2 {[%emt 0:03:53]} Ngf6 {[%emt 0:01:09]} 11. Bd3 {[%emt 0:00:55]} h5 {[%emt 0:05:37]} 12. Nf1 {[%emt 0:04:23]} Qc7 {[%emt 0:00:32]} 13. Bg5 {[%emt 0:01:30]} c4 {[%emt 0:02:06]} 14. Bb1 {[%emt 0:02:08]} b3 {[%emt 0:00:49]} 15. e5 {[%emt 0:03:23]} dxe5 {[%emt 0:02:23]} 16. dxe5 {[%emt 0:01:46]} Ng4 {[%emt 0:00:49]} 17. Bxe7 {[%emt 0:03:44]} Kxe7 {[%emt 0:00:15]} 18. Nd4 {[%emt 0:08:01]} Ngxe5 {[%emt 0:09:09]} 19. Qd2 {[%emt 0:04:37]} Kf8 {[%emt 0:03:08]} 20. f4 {[%emt 0:06:39]} Ng4 {[%emt 0:00:47]} 21. h3 {[%emt 0:04:07]} e5 {[%emt 0:01:43]} 22. fxe5 {[%emt 0:03:20]} Ngxe5 {[%emt 0:00:22]} 23. Ne3 {[%emt 0:08:52]} Re8 {[%emt 0:12:52]} 24. Ndf5 {[%emt 0:05:04]} Re6 {[%emt 0:00:55]} 25. Qd4 {[%emt 0:01:27]} Rg6 {[%emt 0:02:14]} 26. Be4 {[%emt 0:04:21]} Bxe4 {[%emt 0:01:58]} 27. Qxe4 {[%emt 0:00:05]} Qc6 {[%emt 0:00:22]} 28. Nd5 {[%emt 0:02:18]} Rg5 {[%emt 0:07:06]} 29. Rad1 {[%emt 0:02:33]} g6 {[%emt 0:02:59]} 30. Nd4 {[%emt 0:03:39]} Qd6 {[%emt 0:01:24]} 31. Nf4 {[%emt 0:06:09]} Qe7 {[%emt 0:05:05]} 32. Kh1 {[%emt 0:01:48]} Kg7 {[%emt 0:01:28]} 33. Nf3 {[%emt 0:02:13]} Rf5 {[%emt 0:02:28]} 34. Rxd7 {[%emt 0:03:42]} Qxd7 {[%emt 0:00:32]} 35. Nxe5 {[%emt 0:00:11]} Qd2 {[%emt 0:00:43]} 36. Rf1 {[%emt 0:04:07]} Re8 {[%emt 0:04:47]} 37. Nxh5+ {[%emt 0:05:43]} Kf8 {[%emt 0:08:13]} 38. Nxg6+ {[%emt 0:02:02]} fxg6 {[%emt 0:00:12]} 39. Rxf5+ {[%emt 0:00:07]} gxf5 {[%emt 0:00:09]} 40. Qxf5+ {[%emt 0:00:06]} Ke7 {[%emt 0:30:34]} 41. Qe5+ {[%emt 0:31:55]} Kd8 {[%emt 0:00:11]} 42. Qb8+ {[%emt 0:00:40]} Ke7 $18 {[%emt 0:02:46]} 43. Qc7+ {[%emt 0:00:00]} Qd7 {[%emt 0:00:00]} 44. Qxd7+ {Kd8} 1-0